fUSD/lending_fUSD_20250923
["ID","MTS","AMOUNT","RATE_DAILY","PERIOD"]
[387183980,1758618643559,-502.66429696,0.00024473,2]
[387183981,1758618643569,-500.0,0.00024473,2]
[387183982,1758618643579,-500.0,0.00024473,2]
[387183983,1758618643588,-500.0,0.00024473,2]
[387183984,1758618643598,-500.0,0.00024473,2]
[387183985,1758618643607,-500.0,0.00024473,2]
[387183986,1758618643617,-648.92113222,0.00024473,2]
[387183987,1758618643626,-531.05605632,0.00024473,2]
[387183988,1758618643636,-244.0,0.00024491,2]
[387183989,1758618643646,-213.7,0.000245,2]
[387183990,1758618643657,-150.0,0.000245,2]
[387183991,1758618643666,-150.0,0.000245,2]
[387183992,1758618643676,-150.0,0.000245,2]
[387183993,1758618643686,-150.0,0.000245,2]
[387183994,1758618643697,-150.0,0.000245,2]
[387183995,1758618643708,-150.0,0.000245,2]
[387183996,1758618643717,-150.0,0.000245,2]
[387183997,1758618643727,-201.67759395,0.000245,2]
[387183998,1758618643737,-150.0,0.000245,2]
[387183999,1758618643748,-193.51991899,0.000245,2]
[387184000,1758618643758,-200.0,0.0002451,7]
[387184001,1758618643768,-168.0,0.00024525,2]
[387184002,1758618643777,-500.0,0.0002457,2]
[387184003,1758618643787,-150.0,0.0002457,2]
[387184004,1758618643797,-904.0,0.0002457,2]
[387184005,1758618643807,-150.0,0.0002457,2]
[387184006,1758618643817,-150.0,0.0002457,2]
[387184007,1758618643826,-150.0,0.0002457,2]
[387184008,1758618643836,-150.0,0.0002457,2]
[387184009,1758618643845,-150.0,0.0002457,2]
[387184010,1758618643855,-151.0,0.00024574,2]
[387184011,1758618643865,-244.0,0.00024581,2]
[387184012,1758618643874,-150.0,0.00024613,2]
[387184013,1758618643884,-150.0,0.00024613,2]
[387184014,1758618643897,-150.0,0.00024613,2]
[387184015,1758618643907,-150.0,0.00024613,2]
[387184016,1758618643916,-500.0,0.00024613,2]
[387184017,1758618643925,-150.0,0.00024613,2]
[387184018,1758618643934,-150.0,0.00024613,2]
[387184019,1758618643944,-150.0,0.00024613,2]
[387184020,1758618643953,-500.0,0.00024613,2]
[387184021,1758618643963,-150.0,0.00024613,2]
[387184022,1758618643972,-154.0,0.00024658,2]
[387184023,1758618643982,-158.09180367,0.00024658,2]
[387184024,1758618643993,-152.77811029,0.00024658,2]
[387184025,1758618644003,-154.0,0.00024658,2]
[387184026,1758618644012,-154.0,0.00024658,2]
[387184027,1758618644022,-154.0,0.00024658,2]
[387184028,1758618644031,-154.0,0.00024658,2]
[387184029,1758618644040,-1226.23,0.00024658,2]
[387184030,1758618644050,-1000.0,0.00024658,2]
[387184031,1758618644060,-1000.0,0.00024658,3]
[387184032,1758618644070,-1000.0,0.00024658,3]
[387184033,1758618644079,-1000.0,0.00024658,3]
[387184034,1758618644088,-1000.0,0.00024658,3]
[387184035,1758618644098,-1000.0,0.00024658,3]
[387184036,1758618644107,-1000.0,0.00024658,3]
[387184037,1758618644116,-1000.0,0.00024658,3]
[387184038,1758618644126,-1000.0,0.00024658,3]
[387184039,1758618644135,-1000.0,0.00024658,3]
[387184040,1758618644145,-1000.0,0.00024658,3]
[387184041,1758618644154,-1000.0,0.00024658,3]
[387184042,1758618644164,-1000.0,0.00024658,3]
[387184043,1758618644173,-476.0,0.00024658,2]
[387184044,1758618644184,-244.0,0.00024666,2]
[387184045,1758618644193,-150.0,0.00024696,2]
[387184046,1758618644203,-182.0,0.000247,2]
[387184047,1758618644212,-1654.84288436,0.000247,2]
[387184048,1758618644221,-244.0,0.00024701,2]
[387184049,1758618644231,-244.0,0.00024707,2]
[387184050,1758618644241,-200.0,0.0002471,7]
[387184051,1758618644251,-571.73,0.00024723,2]
[387184052,1758618644260,-168.0,0.00024724,2]
[387184053,1758618644270,-1696.05,0.0002477,2]
[387184054,1758618644279,-1305.0,0.0002477,2]
[387184055,1758618644289,-569.0,0.0002477,2]
[387184056,1758618644299,-4177.0,0.0002477,2]
[387184057,1758618644308,-4231.0,0.0002477,2]
[387184058,1758618644318,-1179.0,0.0002477,2]
[387184059,1758618644327,-899.0,0.0002477,2]
[387184060,1758618644337,-150.0,0.00024774,2]
[387184061,1758618644347,-150.0,0.00024774,2]
[387184062,1758618644357,-1305.55,0.00024788,2]
[387184063,1758618644366,-810.50368705,0.00024798,2]
[387184064,1758618644375,-666.0,0.00024799,2]
[387184065,1758618644385,-185.1325,0.00024799,2]
[387184066,1758618644394,-41073.08,0.000248,7]
[387184067,1758618644404,-516.64379166,0.000248,3]
[387184068,1758618644413,-516.64379166,0.000248,7]
[387184069,1758618644423,-151.0,0.000248,7]
[387184070,1758618644432,-151.0,0.000248,7]
[387184071,1758618644441,-151.0,0.000248,7]
[387184072,1758618644451,-153.38166,0.000248,7]
[387184073,1758618644463,-151.0,0.000248,7]
[387184074,1758618644473,-265.424058,0.000248,7]
[387184075,1758618644483,-151.0,0.000248,7]
[387184076,1758618644492,-153.286304,0.000248,7]
[387184077,1758618644502,-151.0,0.000248,7]
[387184078,1758618644512,-151.0,0.000248,7]
[387184079,1758618644522,-153.0,0.000248,7]
[387184080,1758618644531,-151.0,0.000248,7]
[387184081,1758618644543,-206.336495,0.000248,7]
[387184082,1758618644553,-151.0,0.000248,7]
[387184083,1758618644563,-151.0,0.000248,7]
[387184084,1758618644573,-151.0,0.000248,7]
[387184085,1758618644583,-152.026781,0.000248,7]
[387184086,1758618644592,-217.496612,0.000248,7]
[387184087,1758618644602,-151.0,0.000248,7]
[387184088,1758618644611,-158.284527,0.000248,7]
[387184089,1758618644621,-151.0,0.000248,7]
[387184090,1758618644631,-151.0,0.000248,7]
[387184091,1758618644640,-151.0,0.000248,7]
[387184092,1758618644651,-151.0,0.000248,7]
[387184093,1758618644660,-249.0,0.000248,7]
[387184094,1758618644670,-151.0,0.000248,7]
[387184095,1758618644679,-151.0,0.000248,7]
[387184096,1758618644689,-151.0,0.000248,7]
[387184097,1758618644698,-151.0,0.000248,7]
[387184098,1758618644707,-151.958441,0.000248,7]
[387184099,1758618644717,-175.943789,0.000248,7]
[387184100,1758618644727,-151.0,0.000248,7]
[387184101,1758618644736,-151.0,0.000248,7]
[387184102,1758618644745,-151.0,0.000248,7]
[387184103,1758618644756,-151.940271,0.000248,7]
[387184104,1758618644765,-151.0,0.000248,7]
[387184105,1758618644775,-151.0,0.000248,7]
[387184106,1758618644784,-151.0,0.000248,7]
[387184107,1758618644794,-157.672117,0.000248,7]
[387184108,1758618644803,-151.0,0.000248,7]
[387184109,1758618644812,-225006.539549,0.000248,2]
[387184110,1758618644822,-151.0,0.000248,7]
[387184111,1758618644831,-151.0,0.000248,7]
[387184112,1758618644840,-152.965641,0.000248,7]
[387184113,1758618644849,-151.0,0.000248,7]
[387184114,1758618644859,-630.74371,0.000248,7]
[387184115,1758618644868,-630.74371,0.000248,7]
[387184116,1758618644877,-630.74371,0.000248,7]
[387184117,1758618644887,-630.74371,0.000248,7]
[387184118,1758618644896,-151.0,0.000248,7]
[387184119,1758618644905,-234.750422,0.000248,7]
[387184120,1758618644915,-222.920943,0.000248,7]
[387184121,1758618644924,-151.0,0.000248,7]
[387184122,1758618644933,-151.0,0.000248,7]
[387184123,1758618644943,-151.0,0.000248,7]
[387184124,1758618644952,-151.0,0.000248,7]
[387184125,1758618644962,-151.0,0.000248,7]
[387184126,1758618644971,-151.0,0.000248,7]
[387184127,1758618644980,-151.0,0.000248,7]
[387184128,1758618644989,-151.541077,0.000248,7]
[387184129,1758618644999,-151.0,0.000248,7]
[387184130,1758618645008,-151.0,0.000248,7]
[387184131,1758618645018,-157.726619,0.000248,7]
[387184132,1758618645027,-151.0,0.000248,7]
[387184133,1758618645036,-256.061994,0.000248,7]
[387184134,1758618645045,-151.0,0.000248,7]
[387184135,1758618645054,-368.50010669,0.00024844,2]
[387184136,1758618645064,-150.0,0.00024844,2]
[387184137,1758618645073,-904.0,0.00024844,2]
[387184138,1758618645082,-200.0,0.00024844,2]
[387184139,1758618645092,-200.0,0.00024844,2]
[387184140,1758618645101,-150.0,0.00024844,2]
[387184141,1758618645111,-200.0,0.00024844,2]
[387184142,1758618645121,-200.0,0.00024844,2]
[387184143,1758618645130,-600.0,0.0002485,2]
[387184144,1758618645139,-640.48163124,0.00024866,2]
[387184145,1758618645149,-244.0,0.00024887,2]
[387184146,1758618645159,-150.0,0.00024887,2]
[387184147,1758618645168,-200.0,0.00024887,2]
[387184148,1758618645178,-150.0,0.00024887,2]
[387184149,1758618645188,-500.0,0.00024887,2]
[387184150,1758618645197,-200.0,0.00024887,2]
[387184151,1758618645206,-200.0,0.00024887,2]
[387184152,1758618645216,-200.0,0.00024887,2]
[387184153,1758618645226,-500.0,0.00024887,2]
[387184154,1758618645236,-200.0,0.00024887,2]
[387184155,1758618645246,-610.60770717,0.000249,2]
[387184156,1758618645255,-19457.60172534,0.000249,2]
[387184157,1758618645265,-476.0,0.00024932,2]
[387184158,1758618645274,-37501.0899248,0.00024948,2]
[387184159,1758618645285,-670.0,0.00024958,2]
[387184160,1758618645295,-9603.7305378,0.00024958,2]
[387184161,1758618645305,-353.32590566,0.00024959,2]
[387184162,1758618645314,-151.0,0.00024962,7]
[387184163,1758618645323,-151.0,0.00024962,7]
[387184164,1758618645332,-152.58424,0.00024962,7]
[387184165,1758618645342,-151.0,0.00024962,7]
[387184166,1758618645351,-151.0,0.00024966,2]
[387184167,1758618645360,-200.0,0.0002497,2]
[387184168,1758618645369,-203.1844418,0.00024973,2]
[387184169,1758618645379,-500.0,0.00024973,2]
[387184170,1758618645388,-500.0,0.00024973,2]
[387184171,1758618645397,-500.4017898,0.00024973,2]
[387184172,1758618645407,-500.41617377,0.00024973,2]
[387184173,1758618645416,-501.17812728,0.00024973,2]
[387184174,1758618645425,-500.0,0.00024973,2]
[387184175,1758618645434,-560.19759314,0.00024973,2]
[387184176,1758618645443,-500.0,0.00024973,2]
[387184177,1758618645453,-500.0,0.00024973,2]
[387184178,1758618645463,-166.16325306,0.00024973,2]
[387184179,1758618645478,-500.0,0.00024973,2]
[387184180,1758618645487,-500.54020633,0.00024973,2]
[387184181,1758618645499,-500.0,0.00024973,2]
[387184182,1758618645509,-500.0,0.00024973,2]
[387184183,1758618645519,-502.98974553,0.00024973,2]
[387184184,1758618645529,-436.77809542,0.00024973,2]
[387184185,1758618645538,-500.0,0.00024973,2]
[387184186,1758618645549,-500.0,0.00024973,2]
[387184187,1758618645558,-200.0,0.00024973,2]
[387184188,1758618645568,-500.0,0.00024973,2]
[387184189,1758618645578,-500.0,0.00024973,2]
[387184190,1758618645587,-500.0,0.00024973,2]
[387184191,1758618645598,-500.73883637,0.00024973,2]
[387184192,1758618645607,-500.0,0.00024973,2]
[387184193,1758618645617,-500.0,0.00024973,2]
[387184194,1758618645626,-150.0,0.00024973,2]
[387184195,1758618645635,-500.0,0.00024973,2]
[387184196,1758618645645,-500.0,0.00024973,2]
[387184197,1758618645654,-500.0,0.00024973,2]
[387184198,1758618645663,-151.0,0.00024973,7]
[387184199,1758618645673,-151.0,0.00024973,7]
[387184200,1758618645683,-151.0,0.00024973,7]
[387184201,1758618645692,-151.0,0.00024973,7]
[387184202,1758618645701,-167.265908,0.00024973,7]
[387184203,1758618645711,-630.74371,0.00024973,7]
[387184204,1758618645721,-630.74371,0.00024973,7]
[387184205,1758618645730,-630.74371,0.00024973,7]
[387184206,1758618645740,-630.74371,0.00024973,7]
[387184207,1758618645751,-151.0,0.00024973,7]
[387184208,1758618645761,-150.0,0.00024975,2]
[387184209,1758618645771,-257.26457208,0.00024977,2]
[387184210,1758618645781,-327.88621931,0.00024978,2]
[387184211,1758618645791,-152.39,0.0002498,2]
[387184212,1758618645800,-1839.95,0.0002498,2]
[387184213,1758618645810,-150.99,0.0002498,2]
[387184214,1758618645820,-398.50786655,0.0002498,2]
[387184215,1758618645829,-151.0,0.0002498,7]
[387184216,1758618645839,-151.0,0.0002498,7]
[387184217,1758618645848,-151.0,0.0002498,7]
[387184218,1758618645857,-151.0,0.0002498,7]
[387184219,1758618645867,-151.0,0.0002498,7]
[387184220,1758618645876,-271.53770979,0.0002498,7]
[387184221,1758618645886,-151.0,0.0002498,7]
[387184222,1758618645896,-151.0,0.0002498,7]
[387184223,1758618645905,-151.0,0.0002498,7]
[387184224,1758618645915,-151.0,0.0002498,7]
[387184225,1758618645924,-75002.1798497,0.0002498,2]
[387184226,1758618645933,-469.12951379,0.00024982,2]
[387184227,1758618645943,-539.75116102,0.00024983,2]
[387184228,1758618645952,-610.37280826,0.00024985,2]
[387184229,1758618645962,-680.9944555,0.00024987,2]
[387184230,1758618645971,-751.61610273,0.00024988,2]
[387184231,1758618645981,-152.39,0.00024989,2]
[387184232,1758618645990,-152.39,0.00024989,2]
[387184233,1758618646001,-152.39,0.00024989,2]
[387184234,1758618646010,-152.39,0.00024989,2]
[387184235,1758618646020,-262507.629474,0.0002499,2]
[387184236,1758618646029,-822.23774997,0.0002499,2]
[387184237,1758618646038,-151.0,0.0002499,7]
[387184238,1758618646047,-154.936067,0.0002499,7]
[387184239,1758618646057,-151.0,0.0002499,7]
[387184240,1758618646067,-151.0,0.0002499,7]
[387184241,1758618646076,-152.517596,0.0002499,7]
[387184242,1758618646086,-151.0,0.0002499,7]
[387184243,1758618646095,-162.097115,0.0002499,7]
[387184244,1758618646105,-151.0,0.0002499,7]
[387184245,1758618646114,-151.0,0.0002499,7]
[387184246,1758618646123,-151.0,0.0002499,7]
[387184247,1758618646133,-151.0,0.0002499,7]
[387184248,1758618646142,-151.0,0.0002499,7]
[387184249,1758618646151,-222.871775,0.0002499,7]
[387184250,1758618646162,-151.0,0.0002499,7]
[387184251,1758618646174,-151.0,0.0002499,7]
[387184252,1758618646184,-155.176217,0.0002499,7]
[387184253,1758618646194,-151.0,0.0002499,7]
[387184254,1758618646203,-151.0,0.0002499,7]
[387184255,1758618646213,-151.0,0.0002499,7]
[387184256,1758618646221,-167.769688,0.0002499,7]
[387184257,1758618646231,-151.0,0.0002499,7]
[387184258,1758618646241,-151.0,0.0002499,7]
[387184259,1758618646251,-159.842725,0.0002499,7]
[387184260,1758618646260,-198.0,0.0002499,7]
[387184262,1758618646270,-192.57175,0.0002499,7]
[387184263,1758618646279,-151.0,0.0002499,7]
[387184264,1758618646289,-151.0,0.0002499,7]
[387184265,1758618646298,-151.0,0.0002499,7]
[387184266,1758618646307,-151.0,0.0002499,7]
[387184267,1758618646317,-151.468998,0.0002499,7]
[387184268,1758618646326,-630.74371,0.0002499,7]
[387184269,1758618646335,-630.74371,0.0002499,7]
[387184270,1758618646345,-630.74371,0.0002499,7]
[387184271,1758618646354,-630.74371,0.0002499,7]
[387184272,1758618646364,-151.0,0.0002499,7]
[387184273,1758618646373,-151.0,0.0002499,7]
[387184274,1758618646383,-151.0,0.0002499,7]
[387184275,1758618646392,-151.0,0.0002499,7]
[387184276,1758618646401,-151.0,0.0002499,7]
[387184277,1758618646411,-152.39,0.0002499,2]
[387184278,1758618646421,-151.0,0.0002499,7]
[387184279,1758618646430,-151.0,0.0002499,7]
[387184280,1758618646440,-204.283056,0.0002499,7]
[387184281,1758618646450,-178.27511366,0.0002499,2]
[387184282,1758618646459,-151.0,0.00024999,7]
[387184283,1758618646471,-151.0,0.00024999,7]
[387184284,1758618646484,-151.0,0.00024999,7]
[387184285,1758618646493,-151.0,0.00024999,7]
[387184286,1758618646503,-906755.59309047,0.00024999,2]
[387184289,1758618647207,153.483365,0.00018475,2]
[387184290,1758618647317,153.483365,0.00018233,2]
[387184291,1758618647431,-153.483365,0.00018729,2]
[387184292,1758618647441,-206.91279542,0.00018729,2]
[387184293,1758618647488,153.483365,0.00017999,2]
[387184294,1758618647519,312.75425,0.00018475,2]
[387184295,1758618647670,312.75425,0.00018233,2]
[387184296,1758618647738,152.0,0.00017999,2]
[387184297,1758618647764,160.75425,0.00017999,2]
[387184298,1758618647801,153.483365,0.00017997,2]
[387184299,1758618647946,153.483365,0.00017996,2]
[387184300,1758618648010,312.75425,0.00017997,2]
[387184301,1758618648051,153.483365,0.00017995,2]
[387184302,1758618648454,312.75425,0.00017996,2]
[387184303,1758618648524,153.483365,0.00017995,2]
[387184304,1758618648994,153.483365,0.00017994,2]
[387184305,1758618649372,153.483365,0.00017989,2]
[387184306,1758618649599,312.75425,0.00017995,2]
[387184307,1758618649795,153.483365,0.00017988,2]
[387184308,1758618650067,188.41770813,0.00017995,2]
[387184309,1758618650090,124.33654187,0.00017995,2]
[387184310,1758618650206,153.483365,0.00017983,2]
[387184311,1758618650543,312.75425,0.00017994,2]
[387184312,1758618651573,312.75425,0.00017989,2]
[387184313,1758618652604,312.75425,0.00017988,2]
[387184314,1758618653049,312.75425,0.00017983,2]
[387184315,1758618722988,10000.0,0.00030137,120]
[387184324,1758618798762,10000.0,0.00030137,120]
[387184331,1758618859139,157.17,0.00011548,2]
[387184332,1758618907680,10000.0,0.00030137,120]
[387184386,1758619348545,10000.0,0.00030137,120]
[387184388,1758619350812,233.75,0.00030137,120]
[387184439,1758619562548,-900.0,0.00022874,30]
[387184442,1758619658809,183710.425864,0.000185,2]
[387184443,1758619658840,276798.86888578,0.000185,2]
[387184462,1758619809978,200.0,0.0001854,2]
[387184474,1758619831986,-151.0,0.0001907,2]
[387184475,1758619831996,-1200.0,0.00019166,2]
[387184476,1758619832005,-505.03470237,0.00019167,2]
[387184477,1758619832014,-500.0,0.00019167,2]
[387184478,1758619832024,-501.53303074,0.00019167,2]
[387184479,1758619832034,-300.0,0.00019997,2]
[387184480,1758619832043,-375.0,0.00019997,2]
[387184481,1758619832052,-500.0,0.00019998,2]
[387184482,1758619832062,-500.0,0.00019998,2]
[387184483,1758619832071,-500.0,0.00019998,2]
[387184484,1758619832082,-477.25839699,0.00019998,2]
[387184485,1758619832091,-500.0,0.00019998,2]
[387184486,1758619832101,-500.0,0.00019998,2]
[387184487,1758619832111,-500.0,0.00019998,2]
[387184488,1758619832120,-500.0,0.00019998,2]
[387184489,1758619832129,-500.0,0.00019998,2]
[387184490,1758619832138,-500.0,0.00019998,2]
[387184491,1758619832148,-500.0,0.00019998,2]
[387184492,1758619832158,-500.0,0.00019998,2]
[387184493,1758619832168,-247.41059597,0.00019998,2]
[387184494,1758619832177,-500.0,0.00019998,2]
[387184495,1758619832187,-500.0,0.00019998,2]
[387184496,1758619832197,-500.0,0.00019998,2]
[387184497,1758619832207,-500.0,0.00019998,2]
[387184498,1758619832217,-500.0,0.00019998,2]
[387184500,1758619832227,-500.0,0.00019998,2]
[387184501,1758619832236,-500.0,0.00019998,2]
[387184502,1758619832246,-500.0,0.00019998,2]
[387184503,1758619832256,-500.0,0.00019998,2]
[387184504,1758619832266,-500.0,0.00019998,2]
[387184505,1758619832275,-500.0,0.00019998,2]
[387184506,1758619832285,-500.0,0.00019998,2]
[387184507,1758619832294,-500.0,0.00019998,2]
[387184508,1758619832303,-161.04385494,0.00019999,2]
[387184509,1758619832313,-397.68794296,0.00019999,2]
[387184510,1758619832322,-160.71767683,0.00019999,2]
[387184511,1758619832331,-75738.38749467,0.0002,2]
[387184512,1758619832341,-79006.04884156,0.0002,2]
[387184513,1758619832350,-36998.86429847,0.0002,2]
[387184514,1758619832381,-36230.21107469,0.0002,2]
[387184515,1758619832390,-9698.25888827,0.00020461,2]
[387184516,1758619832400,-500.0,0.00020561,2]
[387184517,1758619832409,-400.0,0.000207,2]
[387184518,1758619832419,-250.0,0.00020712,2]
[387184520,1758619832428,-55456.56208559,0.000208,2]
[387184522,1758619832438,-516.64379166,0.00020863,2]
[387184524,1758619832447,-500.0,0.00020875,2]
[387184526,1758619832455,-508.56111543,0.00020875,2]
[387184528,1758619832465,-500.0,0.00020875,2]
[387184531,1758619832474,-610.93009127,0.00020875,2]
[387184534,1758619832483,-505.72663363,0.00020875,2]
[387184537,1758619832492,-500.0,0.00020875,2]
[387184540,1758619832501,-507.33513394,0.00020875,2]
[387184543,1758619832510,-184.7703545,0.0002094,2]
[387184546,1758619832519,-500.0,0.0002094,2]
[387184549,1758619832529,-1680.0,0.00020988,2]
[387184551,1758619832539,-1000.0,0.00021488,2]
[387184552,1758619832548,-9698.25888823,0.00021521,2]
[387184554,1758619832558,-500.0,0.000216,2]
[387184556,1758619832572,-666.0,0.00021645,3]
[387184557,1758619832582,-1870.97,0.000219,2]
[387184558,1758619832592,-3223.14,0.00021971,2]
[387184559,1758619832602,-339.62,0.00022,2]
[387184560,1758619832611,-150.0,0.00022,2]
[387184561,1758619832621,-2405.54,0.00022,2]
[387184562,1758619832630,-1500.0,0.00022036,2]
[387184563,1758619832640,-5675.85151211,0.00022117,2]
[387184564,1758619832649,-200.0,0.00022204,2]
[387184565,1758619832659,-200.0,0.00022204,2]
[387184566,1758619832669,-600.0,0.00022204,2]
[387184567,1758619832679,-170.78615504,0.00022204,2]
[387184568,1758619832688,-1305.0,0.00022217,2]
[387184569,1758619832698,-4177.0,0.00022217,2]
[387184570,1758619832707,-1179.0,0.00022217,2]
[387184571,1758619832717,-4231.0,0.00022217,2]
[387184572,1758619832727,-899.0,0.00022217,2]
[387184573,1758619832736,-539.298,0.00022217,2]
[387184574,1758619832746,-3605.858,0.00022217,2]
[387184575,1758619832755,-730.531,0.00022217,2]
[387184576,1758619832764,-505.0,0.00022411,2]
[387184577,1758619832774,-500.0,0.00022566,2]
[387184578,1758619832784,-500.0,0.00022566,2]
[387184579,1758619832793,-500.0,0.00022566,2]
[387184580,1758619832803,-500.0,0.00022566,2]
[387184581,1758619832812,-500.0,0.00022566,2]
[387184582,1758619832822,-8565.75555911,0.00022566,2]
[387184583,1758619832831,-435.22950885,0.00022566,2]
[387184584,1758619832841,-151.0,0.00022566,2]
[387184585,1758619832850,-500.0,0.00022566,2]
[387184586,1758619832860,-500.0,0.00022566,2]
[387184587,1758619832870,-500.0,0.00022566,2]
[387184588,1758619832879,-151.0,0.00022566,2]
[387184589,1758619832889,-500.0,0.00022566,2]
[387184590,1758619832899,-500.0,0.00022566,2]
[387184591,1758619832908,-500.0,0.00022566,2]
[387184592,1758619832918,-207.85524798,0.00022566,2]
[387184593,1758619832930,-292.14475202,0.00022566,2]
[387184594,1758619832940,-500.0,0.00022566,2]
[387184595,1758619832950,-500.0,0.00022566,2]
[387184596,1758619832960,-500.0,0.00022566,2]
[387184597,1758619832969,-500.0,0.00022566,2]
[387184598,1758619832979,-500.0,0.00022566,2]
[387184599,1758619832990,-500.0,0.00022566,2]
[387184600,1758619833000,-500.0,0.00022566,2]
[387184601,1758619833010,-200.0,0.00022566,2]
[387184602,1758619833019,-200.0,0.00022566,2]
[387184603,1758619833030,-200.0,0.00022566,2]
[387184604,1758619833040,-200.0,0.00022566,2]
[387184605,1758619833051,-200.0,0.00022566,2]
[387184606,1758619833061,-200.0,0.00022566,2]
[387184607,1758619833072,-200.0,0.00022566,2]
[387184608,1758619833084,-200.0,0.00022566,2]
[387184609,1758619833094,-200.0,0.00022566,2]
[387184610,1758619833105,-200.0,0.00022566,2]
[387184611,1758619833115,-200.0,0.00022566,2]
[387184612,1758619833126,-200.0,0.00022566,2]
[387184613,1758619833136,-200.0,0.00022566,2]
[387184614,1758619833146,-229.5325194,0.00022566,2]
[387184615,1758619833156,-9698.25888823,0.00022582,2]
[387184616,1758619833167,-2000.0,0.00022584,2]
[387184617,1758619833177,-250.0,0.00022617,2]
[387184618,1758619833187,-391.28009796,0.00022617,2]
[387184619,1758619833197,-645.59243074,0.00022621,2]
[387184620,1758619833207,-600.0,0.00022752,2]
[387184621,1758619833217,-200.0,0.00022855,2]
[387184622,1758619833227,-25.35,0.00022874,30]
[387184623,1758619833236,-5000.0,0.00022963,2]
[387184624,1758619833246,-2351.0,0.00022984,2]
[387184625,1758619833256,-5675.85151208,0.00022997,2]
[387184626,1758619833266,-80253.84255223,0.00023037,2]
[387184627,1758619833278,-14967.99791348,0.00023037,2]
[387184628,1758619833314,-22384.37719505,0.00023037,2]
[387184629,1758619833324,-257.58321915,0.00023065,2]
[387184630,1758619833335,-257.58321915,0.00023079,2]
[387184631,1758619833345,-257.58321915,0.00023081,2]
[387184632,1758619833355,-693.11,0.00023081,2]
[387184633,1758619833364,-257.58321915,0.00023086,2]
[387184634,1758619833374,-176.42,0.00023096,2]
[387184635,1758619833384,-157.17,0.00023096,2]
[387184636,1758619833393,-257.58321915,0.00023113,2]
[387184637,1758619833403,-49769.2466587,0.00023126,2]
[387184638,1758619833534,-693.10460756,0.00023126,2]
[387184653,1758619837977,-651.30724554,0.00021635,2]
[387184655,1758619837989,-763.49845034,0.00021635,2]
[387184656,1758619838000,-525.08430412,0.00021635,2]
[387184657,1758619838010,-769.70238209,0.00022217,2]
[387184658,1758619838023,-930.54,0.00022217,2]
[387184659,1758619838058,-463.48,0.00022217,2]
[387184660,1758619838070,-16719.27761791,0.00022217,2]
[387184661,1758619838080,-4607.79232202,0.00023126,2]
[387184663,1758619838362,-165.274132,0.00018729,2]
[387184665,1758619838372,-11208.50533105,0.00023126,2]
[387184669,1758619839755,165.274132,0.00018475,2]
[387184670,1758619840164,165.274132,0.00017995,2]
[387184672,1758619840304,-161.9674,0.00018729,2]
[387184673,1758619840315,-11603.13237607,0.00023126,2]
[387184674,1758619840338,-10187.94724428,0.00023126,2]
[387184675,1758619840396,-3010.90150001,0.00023126,2]